{"text_format":"3","workbook":"xlsx","n_sheets":2,"sheets":["MDNG45BTO","Translation"],"not_rendered":{"images":11,"defined_names":1},"read":"whole","date_system":"1900"}

{"sheet":"MDNG45BTO","index":0,"n_rows":63,"n_cols":29,"rows_kept":63,"merged":[[1,12,1,13],[2,12,2,13],[3,4,4,4],[3,12,3,13],[4,19,5,19],[4,20,5,26],[5,12,5,13],[5,14,5,15],[6,12,6,13],[6,14,6,15],[7,12,7,13],[7,14,7,15],[11,4,11,5],[23,1,28,1],[23,2,28,2],[40,10,51,10],[41,2,51,2],[46,11,46,13],[46,15,46,17],[53,10,61,10],[53,18,60,18],[56,3,56,5],[56,7,56,9],[57,22,57,25],[58,22,60,25],[61,22,61,23],[62,22,62,23]]}
[]
[null,"Zvolte jazyk",{"$nulls":4},{"$f":"Translation!C3","v":"Dagmaat breedte (A)"},{"$nulls":18},{"$f":"Translation!C35","v":"Vul a.u.b. de in kleur gemarkeerde velden in!"}]
[null,"Select a language",{"$nulls":4},{"$f":"Translation!C4","v":"Dagmaat hoogte (B)"},{"$nulls":21},{"$f":"Translation!C29","v":"Naar binnen"}]
[null,"Wählen Sie eine Sprache:",null,null,"NL",null,{"$f":"Translation!C36","v":"Openingsrichting"},{"$nulls":21},{"$f":"Translation!C26","v":"Naar binnen"}]
[null,"Wybierz język:",{"$nulls":17},"E",{"$f":"Translation!C7","v":"Voorbeelden van bevestiging"}]
[null,"Sélectionner une langue:",{"$nulls":4},{"$f":"Translation!C36","v":"Openingsrichting"},{"$nulls":5},{"$f":"Translation!C28","v":"Naar binnen draaiend"},null,{"$f":"Translation!C25","v":"Naar buiten draaiend"}]
[null,"Kies een taal:",{"$nulls":4},{"$f":"Translation!C30&\" (W)\"","v":"Aan te raden breedte van het frame voor order (W)"},{"$nulls":5},{"$f":"IF(M2=\"\",\"W = A+100\",M2+100)","v":"W = A+100"},null,{"$f":"IF(M2=\"\",\"W = A+50\", M2+50)","v":"W = A+50"}]
[null,"Valige keel",{"$nulls":4},{"$f":"Translation!C31&\" (H)\"","v":"aan te raden hoogte van het frame voor order (H)"},{"$nulls":5},{"$f":"IF(M3=\"\",\"H = B+50\", M3+50)","v":"H = B+50"},null,{"$f":"IF(M3=\"\",\"H = B+30\", M3+30)","v":"H = B+30"}]
[null,"Valitse kieli"]
[null,"Выбрать язык",{"$nulls":17},{"$f":"Translation!C28","v":"Naar binnen draaiend"}]
[null,"Välj ett språk"]
[{"$nulls":4},{"$f":"IF(M2=\"\",\"W\", IF(M4=AC3,\"W= \"& M7,\"W= \"& O7))","v":"W"}]
[]
[{"$nulls":8},{"$f":"Translation!C40","v":"Bevestigingspunten"}]
{"$rows_empty":9}
[null,{"$f":"IF(M2=\"\",\"H\", IF(M4=AC3,\"W= \"& M8,\"W= \"& O8))","v":"H"}]
[]
[]
[]
[{"$nulls":20},{"$f":"Translation!C22","v":"**Aan te raden overlapping achter de opening"}]
[]
[]
[]
[]
[]
[{"$nulls":19},{"$f":"Translation!C25","v":"Naar buiten draaiend"}]
[]
[]
[]
[]
[]
[]
[{"$nulls":10},"A"]
[null,null,"A"]
[]
[]
[]
[]
[{"$nulls":11},"W",{"$nulls":3},"W"]
[]
[]
[]
[{"$nulls":20},{"$f":"Translation!C11","v":"Isolatie"},null,null,{"$f":"Translation!C10","v":"benodigde vrije ruimte"}]
[]
[{"$nulls":20},{"$f":"Translation!C20","v":"Staal"},null,null,{"$f":"Translation!C21","v":"Beton, Baksteen"}]
[{"$nulls":10},"A",{"$nulls":7},"A"]
[]
[]
[{"$nulls":3},"W",{"$nulls":3},"W"]
[]
[{"$nulls":22},{"$f":"Translation!C23","v":"Loopdeur NG met thermische onderbreking"}]
[]
[]
[{"$nulls":22},{"$f":"Translation!C15","v":"Installatie"},null,{"$f":"Translation!C16","v":"Versie:"},{"$f":"Translation!C17","v":"Formaat:"}]
[null,{"$f":"Translation!C32&\" \"&Translation!C33&\" \"&Translation!C34","v":"Het oppervlak dient vlak en stabiel te zijn Tevens moet de dagmaat vlak en haaks zijn. De vloer dient vlak en genivelleerd te zijn"},{"$nulls":20},{"$f":"Translation!C19","v":"Achter de opening"},null,2035,"A4"]

{"sheet":"Translation","index":1,"n_rows":47,"n_cols":16,"rows_kept":47,"hidden":true}
[null,null,"MDNG45BTO",{"$nulls":3},"CZ","EN","DE","PL","FR","NL","ET","FI","RU","SV"]
[null,null,{"$f":"HLOOKUP(MDNG45BTO!E4,G1:P2,2,FALSE)","v":6},{"$nulls":3},1,{"$f":"G2+1","v":2},{"$f":"H2+1","v":3},4,5,6,7,8,9,10]
[null,null,{"$f":"VLOOKUP($G3,$G$2:$P$47,C$2,FALSE)","v":"Dagmaat breedte (A)"},{"$nulls":3},"Šířka otvoru (A)","Opening width (A)","Lichte Breite (A)","Szerokość otworu (A)","Largeer de baie (A)","Dagmaat breedte (A)","Ava laius (A)","Oviaukon leveys (A)","Ширина проема (A)"]
[null,null,"Dagmaat hoogte (B)",{"$nulls":3},"Výška otvoru (B)","Opening height (B)","Lichte Höhe (B)","Wysokość otworu (B)","Hauteur de baie (B)","Dagmaat hoogte (B)","Ava kõrgus (B)","Oviaukon korkeus (B)","Высота проема (B)"]
[null,null,"Aanbevolen breedte van het frame",{"$nulls":3},"Doporučená šířká rámu (W)","Recommended width of frame (W)","empfohlene Rahmenbreite (W)","Zalecana szerokość ościeżnicy","Largeur recommandée du cadre","Aanbevolen breedte van het frame","Soovitatav raami laius (W)","Kehyksen suositeltu leveys (W)","Рекомендуемая ширина рамы (W)"]
[null,null,"Aanbevolen hoogte van het frame",{"$nulls":3},"Doporučená výška rámu (H)","Recommended height of frame (W)","empfohlene Rahmenhöhe (H)","Zalecana wysokość ościeżnicy","Hauteur recommandé du cadre","Aanbevolen hoogte van het frame","Soovitatav raami kõrgus (W)","Kehyksen suositeltu korkeus (W)","Рекомендуемая высота рамы (H)"]
[null,null,"Voorbeelden van bevestiging",{"$nulls":3},"Příklady kotvení","Examples of fixing","Bespiel der Befestigung","Przykłady mocowania","Exemples de fixation","Voorbeelden van bevestiging","Kinnitamise näited","Esimerkkejä kiinnityksestä","Примеры установки"]
[null,null,"Bevestigen door het frame",{"$nulls":3},"Montáž skrz rám","Fixing through the frame","Montage durch den Rahmen","Montaż przez ościeżnice ","Fixation à travers le cadre","Bevestigen door het frame","Läbi raami kinnitamine","Kiinnitys kehyksen läpi","Монтаж с помощью рамы"]
[null,null,"Bevestigen door middel van stalen plaatjes",{"$nulls":3},"Montáž přes kotvící plech","Fixing using steel plates","Montage mit den Befestigungsplatten","Montaż za pomocą płyt stalowych","Fixation avec plaques métalliques","Bevestigen door middel van stalen plaatjes","Metallplaatide abil kinnitamine","Kiinnitys teräslevyillä","Монтаж с использованием анкерных пластин"]
[null,null,"benodigde vrije ruimte",{"$nulls":3},"Nezbytný volný prostor","NECESSARY FREE ROOM","BENÖTIGTER FREIRAUM","NIEZBĘDNA WOLNA PRZESTRZEŃ","Espace libre neccessarie","benodigde vrije ruimte","Vajalik vaba ruum ","TARVITTAVA VAPAA TILA","Необходимое свободное пространство"]
[null,null,"Isolatie",{"$nulls":3},"Izolace","Insulation","Dämmung","Izolacja","Isolation","Isolatie","Isolatsioon","Eriste","Изоляционный материал"]
[null,null,"Bouwstructuur",{"$nulls":3},"Zděná / ocelová konstukce budovy","Building structure (steel/bricks/concrete)","Mauer/Stahlkonstruktion des Gebäudes","Konstrukacja budynku (stalowa/ceglana/ betonowa)","Structure du bâtiment (acier / briques / Béton)","Bouwstructuur","Ehitusmaterjal (metall/telliskivid/tsement)","Rakenne (teräs / tiili / betoni)","Материал здания (сталь/кирпич/бетон)"]
[null,null,"Voor het bevestigen door het frame    Voor bevestiging met de stalen plaatjes moet de binnenslag 100mm zijn       ",{"$nulls":3},"* při montáži Mandooru NG skrz rám. Při montáži přes kotvící plech hloubka stavebního otvoru minimálně 100mm.","* for fixing through the frame.\nFor fixing with steel plates the depth of opening min 100mm ","* bei der Montage von Mandoor NG durch den Rahmen. Bei der Montage mit den Befestigungsplatten muss die Bauöffnung eine Mindestiefe von 100mm haben.","* podczas montażu Mandoor NG przez ościeżnice. Przy montażu za pomocą płyt stalowych minimalna głębokość otowru wynosi 100 mm","* pour fixation à travers le cadre.\nPour fixation avec plaques métalliques, la profondeur d'ouverture mini est de 100 mm","Voor het bevestigen door het frame    Voor bevestiging met de stalen plaatjes moet de binnenslag 100mm zijn       ","*läbi raami kinnitamiseks.                         Metallplaatide abil kinnitamiseks minimaalne ava sügavus 100mm.","*kiinnittäminen rungon läpi.\nTeräslevyjen kiinnittämistä varten aukon syvyys on vähintään 100 mm","* для установки с помощью рамы. Для установки с использованием анкерных пластин глубина проема должна быть не меньше 100 мм"]
[null,null,"Loopdeur NG met thermische onderbreking",{"$nulls":3},"Mandoor NG s přeruš. tepl. mostem ","Mandoor NG with broken thermal bribge","Mandoor NG mit thermischer Trennung","Mandoor NG ze złamanym mostkiem termicznym","Mandoor NG avec rupture de pont thermique","Loopdeur NG met thermische onderbreking","Mandoor NG termoisolatsiooniga","Mandoor NG lämpöeristyksellä","Калитка Mandoor NG с терморазрывом"]
[null,null,"Installatie",{"$nulls":3},"Typ montáže:","Installation:","Typ der Montage","Typ montażu:","Installation : ","Installatie","Paigaldus:","Asennus","Тип монтажа"]
[null,null,"Versie:",{"$nulls":3},"Verze:","Version:","Version:","Wersja:","Version:","Versie:","Versioon:","Versio:","Версия:"]
[null,null,"Formaat:",{"$nulls":3},"Formát: ","Sheet:","Format:","Format:","Format:","Formaat:","Formaat:","Lista:","Лист:"]
[null,null,"In de opening",{"$nulls":3},"Do otvoru","In the opening","In die Öffnung","W otworze:","Dans l'ouverture","In de opening","Avas","Oven aukossa","В проем"]
[null,null,{"$f":"VLOOKUP($G19,$G$2:$P$47,C$2,FALSE)","v":"Achter de opening"},{"$nulls":3},"Za otvor","Behind the opening","Hinter die Öffnung","Za otworem:","Derrière l'ouverture","Achter de opening","Ava taga","Oven aukon takana","За проемом"]
[null,null,"Staal",{"$nulls":3},"Ocel","Steel","Stahl","Stal","Acier","Staal","Metall","Teräs","Сталь"]
[null,null,"Beton, Baksteen",{"$nulls":3},"Beton, pálená cihla, pórobeton","Concrete, bricks","Beton, Ziegel, poriger Beton","Beton, Cegła, Beton komórkowy","Béton, briques","Beton, Baksteen","Tsement, telliskivi","Betoni, tiilet","Бетон, кирпич"]
[null,null,"**Aan te raden overlapping achter de opening",{"$nulls":3},"** Doporučená hodnota přesazení rámového profilu za hranu otvoru.","**Recommended overlap of the frame behind the opening","** emfohlener Maß der Versetzung des Rahmensprofils hinter die Öffnungskannte","**Zalecana wartość przesunięcia profilu ramy za krawędź otworu.","** Chevauchement recommandé du cadre derrière l'ouverture","**Aan te raden overlapping achter de opening","**Soovitatav raami kattumine ava taga","**Suositeltava kehyksen päällekkäisyys aukon taakse","** Рекомендуется смещение уровня рамы за проемом"]
[null,null,"Loopdeur NG met thermische onderbreking",{"$nulls":3},"Mandoor NG bez přeruš. tep. mostu","Mandoor NG w/o broken thermal bribge","Mandoor NG ohne thermische Trennung","Mandoor NG bez złamania mostka termicznego","Mandoor NG sans rupture de pont thermique","Loopdeur NG met thermische onderbreking","Mandoor NG ilma termoisolatsioonita","Mandoor NG ilman lämpöeristystä","Калитка Mandoor NG без терморазрывом"]
[null,null,"Installatie achter de opening, naar buiten draaiend",{"$nulls":3},"Montáž za otvor otevírání ven","Installation behind the opening, open outwards","Montage hinter die Öffnung, Öffnungsrichtung nach außen","Montaż za otworem, kierunek otwierania na zewnątrz","Installation derrière l'ouverture, ouverte vers l'extérieur","Installatie achter de opening, naar buiten draaiend","Paigaldus ava taha, avanemine väljapoole","Asennus aukon taakse, avaa ulospäin","Монтаж за проемом, открытие наружу"]
[null,null,"Naar buiten draaiend",{"$nulls":3},"Otevírání ven","Open outwards","Öffnungsrichtung nach außen","Kierunek otwierania na zewnątrz","Ouverte vers l'extérieur","Naar buiten draaiend","Avanemine väljapoole","Avaa ulospäin","Открывание наружу","Oppnas utat"]
[null,null,"Naar binnen",{"$nulls":3},"ven","outwards","nach außen","na zewnątrz","vers l'extérieur","Naar binnen","väljapoole","ulospäin","Наружу","Utatgaende"]
[null,null,"Installatie achter de opening, naar binnen draaiend",{"$nulls":3},"Montáž za otvor otevírání dovnitř","Installation behind the opening, open inwards","Montage hinter die Öffnung, Öffnungsrichtung nach innen","Montaż za otworem, kierunek otwierania do wewnątrz","Installation derrière l'ouverture, ouverte vers l'intérieur","Installatie achter de opening, naar binnen draaiend","Paigaldus ava taha, avanemine sissepoole","Asennus aukon taakse, avaa sisäänpäin","Монтаж за проемом, открытие внутрь"]
[null,null,"Naar binnen draaiend",{"$nulls":3},"Otevírání dovnitř","Open inwards","Öffnungsrichtung nach innen","Kierunek otwierania do wewnątrz","Ouverte vers l'intérieur","Naar binnen draaiend","Avanemine sissepoole","Avaa sisäänpäin","Открывание внутрь","Oppnas innat."]
[null,null,"Naar binnen",{"$nulls":3},"dovnitř","inwards","nach innen","do wewnątrz","vers l'intérieur","Naar binnen","sissepoole","sisäänpäin","Внутрь","Inatgaende"]
[null,null,"Aan te raden breedte van het frame voor order",{"$nulls":3},"Doporučená objedací šířka rámu","Recommended width of frame for order","empfohlene Rahmenbreite - Bestellmaß","Zalecana szerokość ościeżnicy dla zamówienie","Largeur recommandée du cadre pour la commande","Aan te raden breedte van het frame voor order","Soovitatav raami laius tellimisel","Suositeltava kehyksen leveys tilausta varten","Рекоендованная ширина рамы для заказа"]
[null,null,"aan te raden hoogte van het frame voor order",{"$nulls":3},"Doporučená objedací výška rámu","Recommended height of frame for order","empfohlene Rahmenhöhe - Bestellmaß","Zalecana wysokość ościeżnicy dla zamówienie","Hauteur recommandée du cadre pour la commande","aan te raden hoogte van het frame voor order","Soovitatav raami kõrgus tellimisel","Suositeltava kehyksen korkeus tilausta varten","Рекоендованная высота рамы для заказа"]
[null,null,"Het oppervlak dient vlak en stabiel te zijn",{"$nulls":3},"Plocha na kterou se montuje, musí být rovná a pevná.","Surface has to be flat and stable.","Die Oberfläche für die Montage muss gerade und fest sein","Powierzchnia do montażu musi być płaska i solidna","La surface doit être lisse et stable","Het oppervlak dient vlak en stabiel te zijn","Pind peab olema sile ja stabiilne","Pinnan on oltava tasainen ja vakaa","Поверхность должна быть плоской и стабильной"]
[null,null,"Tevens moet de dagmaat vlak en haaks zijn.",{"$nulls":3},"Otvor musí být svislý a obdelníkový.","Furthermore the opening must be plumb and square.","Die Winkel in der Öffnung müssen rechtecking sein","Otwór musi być pionowy i prostokątny.","L'ouverture de la baie doit être parfaitement de niveau et d'equerre.","Tevens moet de dagmaat vlak en haaks zijn.","Ava peab olema täpne ja nelinurkne","Lisäksi oviaukon pitää olla pysty- ja vaakasuora sekä nelikulmainen.","Проем также должен быть ровным и прямоугольным."]
[null,null,"De vloer dient vlak en genivelleerd te zijn",{"$nulls":3},"Podlaha musí být v místě dveří rovná a vodorovná.","Leveled and flat floor.","Der Boden muss gerage und waagerecht sein","Podłoga musi być płaska i wyrównana.","Sol nivelé et plat","De vloer dient vlak en genivelleerd te zijn","Loodis ja ühtlane põrand","Tasainen lattia","Пол должен быть плоским и наливным"]
[null,null,{"$f":"VLOOKUP($G35,$G$2:$P$47,C$2,FALSE)","v":"Vul a.u.b. de in kleur gemarkeerde velden in!"},{"$nulls":3},"Prosím, vyplňte pole, která jsou označena barevně!","Please, fill in the fields that are marked in color!","Füllen Sie bitte alle markierte Felder aus!","Prosimy o wypełnienie pól oznaczonych kolorem!","S'il vous plaît remplissez les champs qui sont marqués en couleur!","Vul a.u.b. de in kleur gemarkeerde velden in!","Palun täida värvilised väljad!","\nTäytä kentät, jotka on merkitty värillä!","Пожалуйста, заполните поля обозначенные цветом!"]
[null,null,"Openingsrichting",{"$nulls":3},"Směr otevírání","Direction of opening","Öffnungsrichtung","Kierunek otwierania","Direction d'ouverture","Openingsrichting","Avamissuund","Avaussuunta","Направление открывания","Oppningsriktning"]
[null,null,"Vul breedte in van linker deurblad (L)",{"$nulls":3},"Zadejte šířku levého křídla (L)","Enter width of left leaf (L)","Geben Sie die Breite des linken Torflügels (L) ein","Wprowadź szerokość lewego skrzydła (L)","Entrez la largeur de la feuille gauche","Vul breedte in van linker deurblad (L)","Sisesta vasaku lehe laius (V)","Kirjoita vasemman sivun leveys (V)","Введите ширину левой створки (L)","Ange vanster dorrbladsbredd (L)"]
[null,null,"Breedte van linker deurblad (L)",{"$nulls":3},"Šířka levého křídla (L)","Width of left leaf (L)","Breite des linken Torflügels (L)","Szerokość lewego skrzydła (L)","Largeur de la feuille gauche (L)","Breedte van linker deurblad (L)","Vasaku lehe laius (V)","Vasemman sivun leveys (V)","Ширина левой створки (L)","Bredd av vanster dorrblad (L) "]
[null,null,"Breedte van rechter deurblad ( R)",{"$nulls":3},"Šířka pravého křídla ( R ) ","Width of right leaf (R )","Breite des rechten Torflügels ( R)","Szerokość prawego skrzydła (R)","Largeur de la feuille droite ( R)","Breedte van rechter deurblad ( R)","Parema lehe Laius (P)","Oikean sivun leveys (O)","Ширина правой створки ( R)","Bredd av hoger dorrblad ( R)"]
[null,null,"Bevestigingspunten",{"$nulls":3},"Kotící body","Fixing points","Befestigungspunkte","Punkty kontrolne","Points de fixation","Bevestigingspunten","Kinnituspunktid","Kiinnityspisteet","Точки крепления","Infastnings punkter"]
[null,null,"Symmetrie van de deurbladen",{"$nulls":3},"Souměrnost křídel","Symmetry of leafs","symmetrische Torflügel","Symetria skrzydeł","Symétrie des feuilles","Symmetrie van de deurbladen","Ukselehtede sümmeetria","Ovilehtien symmetria","Симметрия створок ","Symmetri av dorrblad"]
[null,null,"2LD niet gebroken koude brug",{"$nulls":3},"2LD bez přerušeného tepelného mostu","2LD without broken thermal bridge","2LD ohne thermische Trennung","2LD bez przegrody termicznej","2LD sans rupture thermique","2LD niet gebroken koude brug","2LD ilma katkestatud termilise silla","2LD ilman keskeytettyä termistä siltaa","2LD без терморазрыва"]
[null,null,"Ja",{"$nulls":3},"Ano","Yes","Ja","Tak","Oui","Ja","Jah","Joo","да"]
[null,null,"Nee",{"$nulls":3},"Ne","No","Nein","Nie","Non","Nee","Ei","Ei","нет"]
[null,null,"2LD met thermische onderbreking",{"$nulls":3},"2LD s přeruš. tepl. mostem ","2LD with broken thermal bribge","2LD mit thermischer Trennung","2LD ze złamanym mostkiem termicznym","2LD avec rupture de pont thermique","2LD met thermische onderbreking","2LD termoisolatsiooniga","2LD lämpöeristyksellä","2LD с терморазрывом"]
[null,null,{"$error":"#N/A"}]
[null,null,{"$error":"#N/A"}]